{"text_format":"3","workbook":"xlsx","n_sheets":6,"sheets":["SEMESTAR","KREDITI","BUDŽET","MESEČNI NETO TROŠKOVI","TROŠKOVI TOKOM SEMESTRA","KNJIGE"],"not_rendered":{"defined_names":21},"read":"whole","date_system":"1900"}

{"sheet":"SEMESTAR","index":0,"n_rows":29,"n_cols":9,"rows_kept":29,"merged":[[2,3,2,4]]}
[null,"RASPORED ČASOVA"]
[null,"JESENJI SEMESTAR"]
[null,null,"VREME POČETKA","VREMENSKI INTERVAL",null,"GODINA"]
[null,null,"09:00:00",60,"(u minutima)"]
[null,"VREME ","PON","UTO.","SRE.","ČET.","PET.","SUB.","NED"]
[null,{"$f":"VremePočetka+TIME(0,(ROW(A1)-1)*Vremenski_nterval,0)","v":"09:00:00"},"Doručak","Doručak","Doručak","Doručak","Doručak"]
[null,"10:00:00","Posao: Predavanje, zgrada B, kabinet 256"]
[null,"11:00:00",{"$nulls":3},"Fizika: Laboratorija \nZgrada J, kabinet 309"]
[null,"12:00:00"]
[null,"13:00:00"]
[null,"14:00:00"]
[null,"15:00:00"]
[null,"16:00:00"]
[null,"17:00:00"]
[null,"18:00:00"]
[null,"19:00:00"]
[null,"20:00:00"]
[null,"21:00:00"]
[null,"22:00:00"]
[null,"23:00:00"]
[null,1]
[null,1.0416666666666665]
[null,1.0833333333333335]
[null,1.125]
[null,1.1666666666666665]
[null,1.2083333333333335]
[null,1.25]
[null,1.2916666666666665]
[null,1.3333333333333335]

{"sheet":"KREDITI","index":1,"n_rows":17,"n_cols":8,"rows_kept":17}
[null,"FAKULTET"]
[null,"PLANER KREDITA"]
[null,"Naziv zvanja",{"$f":"Godina","v":"GODINA"}]
[null,"UKUPNI NAPREDAK",null,"UKUPNI NAPREDAK"]
[null,{"$f":"AVERAGE(Kursevi[OCENA])","v":3.5},{"$f":"IFERROR(TEXT(AVERAGEIF(Kursevi[ZAVRŠENO],\"Da\",Kursevi[OCENA]),\"0,00\"),\"0.00\")&\" Trenutni prosek ocena\"","v":"3,50 Trenutni prosek ocena"},{"$f":"COUNTIF(Kursevi[ZAVRŠENO],\"Da\")/COUNTA(Kursevi[NASLOV KURSA])","v":0.6666666666666666},{"$f":"TEXT(COUNTIF(Kursevi[ZAVRŠENO],\"Da\")/COUNTA(Kursevi[NASLOV KURSA]),\"0%\")&\" Dovršeno\"","v":"67% Dovršeno"}]
[null,"Napomena: Sledeći rezime bodova automatski se popunjava unosima iz dolenavedene tabele „Fakultetski kursevi“"]
[null,"USLOV","UKUPNO BODOVA","OSTVARENO","POTREBNO"]
[null,"Glavni akademski predmet",{"$f":"IF(SUMIF(Kursevi[ZAHTEVANO],KREDITI!$B8,Kursevi[KREDITI])=0,\"0\",SUMIF(Kursevi[ZAHTEVANO],KREDITI!$B8,Kursevi[KREDITI]))","v":4},{"$f":"SUMIFS(Kursevi[KREDITI],Kursevi[ZAHTEVANO],KREDITI!$B8,Kursevi[ZAVRŠENO],\"Da\")","v":4},{"$f":"SUMIF(Kursevi[ZAHTEVANO],KREDITI!$B8,Kursevi[KREDITI])-SUMIFS(Kursevi[KREDITI],Kursevi[ZAHTEVANO],KREDITI!$B8,Kursevi[ZAVRŠENO],\"Da\")","v":0}]
[null,"Sporedni akademski predmet",{"$f":"IF(SUMIF(Kursevi[ZAHTEVANO],KREDITI!$B9,Kursevi[KREDITI])=0,\"0\",SUMIF(Kursevi[ZAHTEVANO],KREDITI!$B9,Kursevi[KREDITI]))","v":3},{"$f":"SUMIFS(Kursevi[KREDITI],Kursevi[ZAHTEVANO],KREDITI!$B9,Kursevi[ZAVRŠENO],\"Da\")","v":0},{"$f":"SUMIF(Kursevi[ZAHTEVANO],KREDITI!$B9,Kursevi[KREDITI])-SUMIFS(Kursevi[KREDITI],Kursevi[ZAHTEVANO],KREDITI!$B9,Kursevi[ZAVRŠENO],\"Da\")","v":3}]
[null,"Izborni predmet",{"$f":"IF(SUMIF(Kursevi[ZAHTEVANO],KREDITI!$B10,Kursevi[KREDITI])=0,\"0\",SUMIF(Kursevi[ZAHTEVANO],KREDITI!$B10,Kursevi[KREDITI]))","v":2},{"$f":"SUMIFS(Kursevi[KREDITI],Kursevi[ZAHTEVANO],KREDITI!$B10,Kursevi[ZAVRŠENO],\"Da\")","v":2},{"$f":"SUMIF(Kursevi[ZAHTEVANO],KREDITI!$B10,Kursevi[KREDITI])-SUMIFS(Kursevi[KREDITI],Kursevi[ZAHTEVANO],KREDITI!$B10,Kursevi[ZAVRŠENO],\"Da\")","v":0}]
[null,"Opšte studije",{"$f":"IF(SUMIF(Kursevi[ZAHTEVANO],KREDITI!$B11,Kursevi[KREDITI])=0,\"0\",SUMIF(Kursevi[ZAHTEVANO],KREDITI!$B11,Kursevi[KREDITI]))","v":"0"},{"$f":"SUMIFS(Kursevi[KREDITI],Kursevi[ZAHTEVANO],KREDITI!$B11,Kursevi[ZAVRŠENO],\"Da\")","v":0},{"$f":"SUMIF(Kursevi[ZAHTEVANO],KREDITI!$B11,Kursevi[KREDITI])-SUMIFS(Kursevi[KREDITI],Kursevi[ZAHTEVANO],KREDITI!$B11,Kursevi[ZAVRŠENO],\"Da\")","v":0}]
[null,"Ukupno",{"$f":"SUBTOTAL(109,KREDITI!$C$8:$C$11)","v":9},{"$f":"SUBTOTAL(109,KREDITI!$D$8:$D$11)","v":6},{"$f":"SUBTOTAL(109,KREDITI!$E$8:$E$11)","v":3}]
[null,"Kursevi"]
[null,"NASLOV KURSA","BROJ KURSA","ZAHTEVANO","KREDITI","ZAVRŠENO","OCENA","SEMESTAR"]
[null,"Kurs 1","Broj","Glavni akademski predmet",4,"Da",{"v":4,"d":"4.0"},"Semestar 1"]
[null,"Kurs 2","Broj","Sporedni akademski predmet",3,"Ne",null,"Semestar 1"]
[null,"Kurs 3","Broj","Izborni predmet",2,"Da",{"v":3,"d":"3.0"},"Semestar 1"]

{"sheet":"BUDŽET","index":2,"n_rows":15,"n_cols":4,"rows_kept":15}
[null,{"$f":"Fakultet","v":"FAKULTET"}]
[null,"PRAĆENJE BUDŽETA"]
[null,"Moj budžet",{"$f":"Godina","v":"GODINA"}]
[null,"PROCENAT POTROŠENOG PRIHODA"]
[null,{"$f":"MESEČNI_NETO_TROŠKOVI/MESEČNI_NETO_PRIHOD","v":{"v":0.7454545454545455,"d":"75%"}}]
[null,{"$f":"B5","v":0.7454545454545455}]
[null,"MESEČNI NETO PRIHOD","MESEČNI NETO TROŠKOVI","SALDO"]
[null,{"$f":"C10","v":{"v":2750,"d":"2,750 RSD"}},{"$f":"'MESEČNI NETO TROŠKOVI'!C4+'TROŠKOVI TOKOM SEMESTRA'!D4","v":{"v":2050,"d":"2,050 RSD"}},{"$f":"MESEČNI_NETO_PRIHOD-MESEČNI_NETO_TROŠKOVI","v":{"v":700,"d":"700 RSD"}}]
[null,"Meseci u semestru",4]
[null,"MESEČNI PRIHOD",{"$f":"SUM(MesečniPrihod[IZNOS])","v":{"v":2750,"d":"2,750 RSD"}}]
[null,"STAVKA","IZNOS"]
[null,"Fiksni prihod",{"v":1500,"d":"1,500 RSD"}]
[null,"Finansijska pomoć",{"v":500,"d":"500 RSD"}]
[null,"Zajmovi",{"v":500,"d":"500 RSD"}]
[null,"Ostali prihodi",{"v":250,"d":"250 RSD"}]

{"sheet":"MESEČNI NETO TROŠKOVI","index":3,"n_rows":15,"n_cols":3,"rows_kept":15}
[null,{"$f":"Fakultet","v":"FAKULTET"}]
[null,"PRAĆENJE BUDŽETA"]
[null,"Mesečni troškovi",{"$f":"Godina","v":"GODINA"}]
[null,"MESEČNI TROŠKOVI",{"$f":"SUM(MesečniTroškovi[IZNOS])","v":{"v":1675,"d":"1,675 RSD"}}]
[null,"STAVKA","IZNOS"]
[null,"Renta",{"v":300,"d":"300 RSD"}]
[null,"Komunalne usluge",{"v":50,"d":"50 RSD"}]
[null,"Mobilni telefon",{"v":75,"d":"75 RSD"}]
[null,"Namirnice",{"v":250,"d":"250 RSD"}]
[null,"Troškovi automobila",{"v":50,"d":"50 RSD"}]
[null,"Studentski zajmovi",{"v":500,"d":"500 RSD"}]
[null,"Kreditne kartice",{"v":275,"d":"275 RSD"}]
[null,"Osiguranje",{"v":125,"d":"125 RSD"}]
[null,"Zabava",{"v":50,"d":"50 RSD"}]
[null,"Razno",{"v":0,"d":"0 RSD"}]

{"sheet":"TROŠKOVI TOKOM SEMESTRA","index":4,"n_rows":11,"n_cols":4,"rows_kept":11}
[null,{"$f":"Fakultet","v":"FAKULTET"}]
[null,"PRAĆENJE BUDŽETA"]
[null,"Troškovi tokom semestra",{"$f":"Godina","v":"GODINA"}]
[null,"TROŠKOVI TOKOM SEMESTRA (ukupno/mesečno)",{"$f":"SUM(TroškoviTokomSemestra[IZNOS])","v":{"v":1500,"d":"1,500 RSD"}},{"$f":"SUM(TroškoviTokomSemestra[MESEČNO])","v":{"v":375,"d":"375 RSD"}}]
[null,"STAVKA","IZNOS","MESEČNO"]
[null,"Školarina",{"v":750,"d":"750 RSD"},{"$f":"TroškoviTokomSemestra[[#This Row],[IZNOS]]/Meseci_u_semestru","v":{"v":187.5,"d":"188 RSD"}}]
[null,"Laboratorijske takse",{"v":250,"d":"250 RSD"},{"$f":"TroškoviTokomSemestra[[#This Row],[IZNOS]]/Meseci_u_semestru","v":{"v":62.5,"d":"63 RSD"}}]
[null,"Knjige",{"v":500,"d":"500 RSD"},{"$f":"TroškoviTokomSemestra[[#This Row],[IZNOS]]/Meseci_u_semestru","v":{"v":125,"d":"125 RSD"}}]
[null,"Depoziti",{"v":0,"d":"0 RSD"},{"$f":"TroškoviTokomSemestra[[#This Row],[IZNOS]]/Meseci_u_semestru","v":{"v":0,"d":"0 RSD"}}]
[null,"Prevoz",{"v":0,"d":"0 RSD"},{"$f":"TroškoviTokomSemestra[[#This Row],[IZNOS]]/Meseci_u_semestru","v":{"v":0,"d":"0 RSD"}}]
[null,"Ostale takse",{"v":0,"d":"0 RSD"},{"$f":"TroškoviTokomSemestra[[#This Row],[IZNOS]]/Meseci_u_semestru","v":{"v":0,"d":"0 RSD"}}]

{"sheet":"KNJIGE","index":5,"n_rows":7,"n_cols":7,"rows_kept":7}
[null,{"$f":"Fakultet","v":"FAKULTET"}]
[null,"PRAĆENJE KNJIGA"]
[null,"Spisak knjiga"]
[null,"NASLOV","AUTOR","KURS","GDE KUPITI?","ISBN","NAPOMENE"]
[null,"Naslov knjige","Autor","Kurs","Lokacija","Broj"]
[null,"Naslov knjige","Autor","Kurs","Lokacija","Broj"]
[null,"Naslov knjige","Autor","Kurs","Lokacija","Broj"]